bitfinex/quotes_SOLUSD_20250130
["timestamp","ask_amount","ask_price","bid_price","bid_amount"]
[1738262376639,0.03,241.13,241.07,46.92290631]
[1738262377435,0.03,241.13,241.07,62.80925641]
[1738262377631,0.03,241.13,241.07,63.80925641]
[1738262380939,0.03,241.13,241.09,1.0]
[1738262381143,0.03,241.13,241.12,12.38726346]
[1738262383984,0.03,241.13,241.12,14.86176503]
[1738262385273,0.77735825,241.26,241.12,29.65008356]
[1738262385483,0.03,241.3,241.24,12.38726346]
[1738262385687,0.12549,241.29,241.24,12.38726346]
[1738262387381,0.12549,241.29,241.23,12.38726346]
[1738262388457,0.77719544,241.28,241.23,12.38726346]
[1738262389082,5.04708628,241.29,241.23,12.38726346]
[1738262392185,4.26989,241.29,241.23,12.38726346]
[1738262394697,0.12549,241.27,241.21,12.38726346]
[1738262394896,12.38726346,241.22,241.16,0.51021443]
[1738262395079,12.38726346,241.22,241.15,0.51068859]
[1738262395691,12.51275346,241.24,241.16,12.38726346]
[1738262395888,12.51275346,241.24,241.17,0.51050957]
[1738262397084,17.43529787,241.24,241.17,0.51050957]
[1738262397401,17.43529787,241.24,241.16,12.38726346]
[1738262398091,0.12549,241.22,241.16,12.38726346]
[1738262398693,4.27099,241.22,241.15,7.92701851]
[1738262399101,4.27099,241.22,241.16,0.51068931]
[1738262399401,0.12549,241.22,241.16,0.51068931]
[1738262403096,7.92701851,241.25,241.19,7.92701851]
[1738262403298,0.12549,241.24,241.19,7.92701851]
[1738262403803,12.10151851,241.29,241.21,7.92701851]
[1738262404001,7.95701851,241.29,241.22,0.51029641]
[1738262404184,0.03,241.29,241.23,7.92701851]
[1738262404608,0.03,241.29,241.27,7.92701851]
[1738262405098,0.03,241.29,241.28,0.50998865]
[1738262406802,0.03,241.29,241.28,12.87492903]
[1738262407007,0.03,241.29,241.28,26.23986941]
[1738262407307,0.03,241.33,241.32,20.0]
[1738262407486,0.03,241.33,241.32,58.65078382]
[1738262408381,0.03,241.38,241.33,14.41184853]
[1738262408585,0.03,241.38,241.37,12.36494038]
[1738262411212,0.03,241.38,241.37,12.8737899]
[1738262411787,0.03,241.38,241.37,26.28563843]
[1738262412505,0.03,241.38,241.37,12.8737899]
[1738262412680,0.03,241.38,241.37,12.36494038]
[1738262413905,0.03,241.38,241.35,12.36494038]
[1738262414103,0.03,241.38,241.37,12.36494038]
[1738262414490,0.03,241.38,241.37,25.77678891]
[1738262414812,0.03,241.38,241.37,12.36494038]
[1738262415019,0.03,241.38,241.37,25.77678891]
[1738262415313,0.03,241.38,241.37,25.90227891]
[1738262416186,5.658,241.54,241.47,12.36494038]
[1738262416514,1.5178,241.54,241.51,12.36494038]
[1738262416714,16.50424038,241.59,241.52,0.50830455]
[1738262417308,12.36494038,241.59,241.52,0.50830455]
[1738262417498,4.1388,241.62,241.53,12.36494038]
[1738262417812,4.1388,241.62,241.54,0.50815049]
[1738262419090,4.139,241.6,241.54,0.50815049]
[1738262419988,12.36494038,241.59,241.54,0.50815049]
[1738262420200,12.36494038,241.59,241.52,0.50823077]
[1738262420596,16.50384038,241.61,241.53,12.36494038]
[1738262420804,12.36494038,241.61,241.54,0.50811465]
[1738262422212,12.36494038,241.59,241.51,12.36494038]
[1738262422399,12.36494038,241.59,241.52,0.50830032]
[1738262423993,0.12549,241.58,241.52,0.50830032]
[1738262425030,0.03,241.61,241.55,12.36494038]
[1738262425219,0.03,241.61,241.56,0.50800104]
[1738262426703,12.39494038,241.61,241.53,12.36494038]
[1738262427021,12.39494038,241.61,241.54,0.50823373]
[1738262427185,12.39494038,241.61,241.54,12.87317411]
[1738262427388,0.03,241.61,241.55,12.36494038]
[1738262427602,0.03,241.61,241.56,0.50796321]
[1738262429497,0.03,241.61,241.58,12.36494038]
[1738262429701,0.03,241.61,241.56,12.36494038]
[1738262430014,0.03,241.61,241.57,0.50802819]
[1738262430388,0.03,241.61,241.55,0.50800143]
[1738262431018,12.36494038,241.6,241.52,12.36494038]
[1738262431332,0.03,241.61,241.54,12.36494038]
[1738262431505,0.03,241.61,241.55,0.50799127]
[1738262431817,0.03,241.61,241.56,12.36494038]
[1738262432018,0.03,241.61,241.58,12.36494038]
[1738262432243,0.03,241.61,241.6,12.36494038]
[1738262433111,0.03,241.61,241.6,25.77678891]
[1738262433451,1.6136,241.78,241.63,2.12549]
[1738262433716,1.6136,241.78,241.74,12.36494038]
[1738262433944,0.25098,241.81,241.75,0.50691632]
[1738262434120,0.12549,241.81,241.75,0.50691632]
[1738262434302,12.36494038,241.82,241.76,12.36494038]
[1738262434518,12.36494038,241.82,241.77,0.50674719]
[1738262434726,12.36494038,241.82,241.76,12.36494038]
[1738262434938,12.36494038,241.8,241.72,12.36494038]
[1738262435108,12.36494038,241.8,241.73,0.50695679]
[1738262435737,0.25098,241.76,241.69,12.36494038]
[1738262436041,0.25098,241.76,241.61,3.26798319]
[1738262436042,12.36494038,241.7,241.62,0.50730377]
[1738262436238,12.36494038,241.68,241.62,0.50730377]
[1738262436736,12.61592038,241.71,241.63,12.36494038]
[1738262436950,4.38818,241.71,241.65,12.36494038]
[1738262437413,12.36494038,241.66,241.59,12.36494038]
[1738262437613,12.36494038,241.68,241.6,0.50766759]
[1738262437929,12.36494038,241.68,241.61,12.36494038]
[1738262438140,12.36494038,241.67,241.62,0.5077064]
[1738262438326,12.36494038,241.65,241.57,12.8726611]
[1738262438746,12.36494038,241.67,241.59,12.36494038]
[1738262439042,4.138,241.66,241.61,12.36494038]
[1738262439252,4.138,241.66,241.62,0.50766647]
[1738262439857,12.36494038,241.67,241.59,12.36494038]
[1738262440059,12.36494038,241.65,241.57,12.36494038]
[1738262440261,12.36494038,241.61,241.53,12.36494038]
[1738262440436,12.36494038,241.59,241.54,0.5082234]
[1738262440781,12.36494038,241.55,241.49,0.50825279]
[1738262441131,12.36494038,241.53,241.45,12.36494038]
[1738262441429,12.36494038,241.53,241.46,0.50866428]
[1738262441733,12.36494038,241.51,241.46,0.50866428]
[1738262441932,4.1407,241.5,241.43,0.5086604]
[1738262442158,12.36494038,241.49,241.43,0.5086604]
[1738262442338,12.36494038,241.47,241.41,0.50900272]
[1738262442538,13.14139302,241.49,241.41,0.50900272]
[1738262442752,12.36494038,241.49,241.41,12.8739431]
[1738262442963,4.1407,241.5,241.41,12.8739431]
[1738262443140,13.14140545,241.49,241.41,0.50900272]
[1738262443347,13.14140545,241.49,241.4,0.50901767]
[1738262443532,12.36494038,241.47,241.4,0.50901767]
[1738262444049,16.50634038,241.47,241.4,0.50901767]
[1738262444652,0.77657034,241.46,241.39,12.36494038]
[1738262444862,0.77657034,241.46,241.39,12.87410247]
[1738262445040,12.36494038,241.45,241.39,0.50916209]
[1738262445245,0.7766848,241.44,241.38,0.063]
[1738262445454,13.14162518,241.45,241.38,0.57228858]
[1738262445658,4.1414,241.47,241.39,12.36494038]
[1738262445659,16.50634038,241.47,241.39,12.36494038]
[1738262446154,16.50634038,241.47,241.4,0.50913321]
[1738262447253,12.36494038,241.47,241.4,0.50913321]
[1738262447463,22.92443038,241.49,241.41,12.36494038]
[1738262447640,22.92443038,241.49,241.42,0.50899205]
[1738262448152,12.36494038,241.49,241.42,0.50899205]
[1738262448659,13.14145172,241.49,241.42,0.50899205]
[1738262449254,17.28245172,241.49,241.42,0.50899205]
[1738262449439,12.36494038,241.47,241.4,0.063]
[1738262449637,12.36494038,241.47,241.4,0.57214957]
[1738262449837,12.36494038,241.47,241.4,0.063]
[1738262450055,4.141,241.49,241.4,0.063]
[1738262450056,12.36494038,241.43,241.4,0.063]
[1738262451058,12.36494038,241.41,241.4,0.063]
[1738262451250,12.36494038,241.43,241.4,0.063]
[1738262451573,4.1414,241.46,241.4,0.063]
[1738262452039,12.36494038,241.43,241.4,0.063]
[1738262452238,12.36494038,241.41,241.4,0.063]
[1738262454568,12.36494038,241.43,241.4,0.063]
[1738262454748,16.50654038,241.45,241.4,0.063]
[1738262455367,0.12549,241.43,241.4,0.063]
[1738262455748,0.77667164,241.42,241.4,0.063]
[1738262456075,0.12549,241.41,241.4,0.063]
[1738262456773,12.49043038,241.41,241.4,0.063]
[1738262457066,0.12549,241.39,241.25,6.2279]
[1738262457260,12.36494038,241.36,241.28,12.87476227]
[1738262458055,0.90243356,241.35,241.28,12.87476227]
[1738262460368,12.36494038,241.3,241.22,0.50992266]
[1738262460753,4.92024356,241.35,241.23,12.36494038]
[1738262460754,12.36494038,241.32,241.23,12.36494038]
[1738262460958,12.36494038,241.34,241.27,12.36494038]
[1738262461161,12.36494038,241.36,241.28,0.50984252]
[1738262461369,12.36494038,241.36,241.29,12.36494038]
[1738262461656,13.94424038,241.38,241.31,12.36494038]
[1738262461975,0.7768675,241.37,241.31,12.36494038]
[1738262462165,14.72113522,241.38,241.32,0.50970867]
[1738262463077,0.77693778,241.37,241.29,12.36494038]
[1738262463377,12.36494038,241.36,241.28,0.063]
[1738262463672,0.77699011,241.35,241.28,0.57289921]
[1738262463890,12.36494038,241.34,241.28,0.063]
[1738262464290,12.36494038,241.3,241.28,0.063]
[1738262465457,12.36494038,241.32,241.28,0.063]
[1738262465676,0.77706865,241.31,241.28,0.063]
[1738262466279,12.36494038,241.3,241.28,0.063]
[1738262467177,0.77709246,241.29,241.28,0.063]
[1738262468072,13.14215316,241.3,241.28,0.063]
[1738262468269,23.92553783,241.32,241.28,0.063]
[1738262468672,17.28583783,241.32,241.28,0.063]
[1738262469379,12.36494038,241.3,241.28,0.063]
[1738262469677,13.14208288,241.3,241.28,0.063]
[1738262471888,4.26979,241.29,241.28,0.063]
[1738262472074,0.12549,241.29,241.28,0.063]
[1738262472273,0.90264532,241.29,241.28,0.063]
[1738262472679,0.12549,241.29,241.28,0.063]
[1738262473612,13.41184853,241.34,241.28,0.063]
[1738262473613,0.77713392,241.33,241.28,0.063]
[1738262473902,0.12549,241.32,241.28,0.063]
[1738262474396,17.28519749,241.36,241.28,0.063]
[1738262474592,0.12549,241.35,241.28,0.57284553]
[1738262475576,0.12549,241.35,241.29,12.36494038]
[1738262475777,12.39494038,241.38,241.31,12.36494038]
[1738262476007,0.12549,241.36,241.31,12.36494038]
[1738262476371,0.12549,241.37,241.31,12.36494038]
[1738262476573,0.12549,241.37,241.3,0.5097419]
[1738262476903,0.12549,241.35,241.29,12.36494038]
[1738262477204,0.12549,241.35,241.28,0.063]
[1738262477205,0.12549,241.33,241.28,0.063]
[1738262478586,0.90250056,241.33,241.28,0.063]
[1738262478900,0.12549,241.33,241.28,0.063]
[1738262480487,0.90251147,241.33,241.28,0.063]
[1738262481599,12.36494038,241.32,241.28,0.063]
[1738262482094,0.12549,241.31,241.28,0.063]
[1738262482478,0.12549,241.32,241.28,0.063]
[1738262486020,16.63433038,241.32,241.28,0.063]
[1738262486309,0.12549,241.3,241.28,0.063]
[1738262494631,12.36494038,241.29,241.28,0.063]
[1738262494837,13.26753514,241.29,241.28,0.063]
[1738262497023,17.41183514,241.29,241.28,0.063]
[1738262498238,31.82368367,241.29,241.28,0.063]
[1738262498542,30.82368367,241.29,241.28,0.063]
[1738262499240,30.94917367,241.29,241.28,0.063]
[1738262501078,0.90259476,241.29,241.28,0.063]
[1738262501230,0.12549,241.29,241.28,0.063]
[1738262509748,0.90263342,241.29,241.28,0.063]
[1738262509945,5.04693342,241.29,241.28,0.063]
[1738262511361,18.45878195,241.29,241.28,0.063]
[1738262511758,19.45878195,241.29,241.28,0.063]
[1738262512171,18.45878195,241.29,241.28,0.063]
[1738262520482,5.04693342,241.29,241.28,0.063]
[1738262520697,0.12549,241.29,241.28,0.063]
[1738262522086,4.29979,241.29,241.28,0.063]
[1738262522266,17.71163853,241.29,241.28,0.063]
[1738262522655,30.09470847,241.29,241.28,0.063]
[1738262525061,12.53855994,241.29,241.28,0.063]
[1738262526967,16.68285994,241.29,241.28,0.063]
[1738262531977,30.09470847,241.29,241.28,0.063]
[1738262537603,12.53855994,241.29,241.28,0.063]
[1738262537971,16.68285994,241.29,241.28,0.063]
[1738262538299,30.09470847,241.29,241.28,0.063]
[1738262539791,12.53855994,241.29,241.28,0.063]
[1738262540503,0.15549,241.29,241.28,0.063]
[1738262540674,0.03,241.29,241.28,12.44606994]
[1738262541309,0.03,241.29,241.28,0.063]
[1738262541914,0.15549,241.29,241.28,0.063]
[1738262543881,16.68285994,241.29,241.28,0.063]
[1738262544085,30.09470847,241.29,241.28,0.063]
[1738262544613,25.63578258,241.29,241.28,0.063]
[1738262552124,12.22393405,241.29,241.28,0.063]
[1738262552428,8.07963405,241.29,241.28,0.063]
[1738262554509,0.03,241.29,241.28,0.063]
[1738262555817,0.15549,241.29,241.28,0.063]
[1738262557727,0.03,241.29,241.28,0.063]
[1738262559408,21.49148258,241.29,241.28,0.063]
[1738262560730,22.49148258,241.29,241.28,0.063]
[1738262561919,26.63578258,241.29,241.28,0.063]
[1738262562530,20.0,241.26,241.13,1.6814]
[1738262562833,0.12549,241.18,241.13,1.6814]
[1738262564741,0.90298569,241.18,241.13,1.6814]
[1738262565240,0.12549,241.16,241.13,1.6814]
[1738262565422,0.90308455,241.16,241.13,1.6814]
[1738262566013,0.90308455,241.16,241.13,0.063]
[1738262568837,7.92414405,241.15,241.13,0.063]
[1738262569152,0.77766424,241.14,241.13,0.063]
[1738262570155,8.70179919,241.15,241.13,0.063]
[1738262571726,0.12549,241.14,241.13,0.063]
[1738262572947,4.27239,241.14,241.13,0.063]
[1738262573443,17.68423853,241.14,241.13,0.063]
[1738262573659,19.21383853,241.14,241.13,0.063]
[1738262574762,20.21383853,241.14,241.13,0.063]
[1738262574984,0.12549,241.1,241.05,0.063]
[1738262575274,8.04963405,241.06,241.05,0.063]
[1738262576555,12.97590532,241.06,241.05,0.063]
[1738262576751,8.82760532,241.06,241.05,0.063]
[1738262577160,12.97590532,241.06,241.05,0.063]
[1738262577359,26.38775385,241.06,241.05,0.063]
[1738262577664,8.82760532,241.06,241.05,0.063]
[1738262577858,0.12549,241.06,241.05,0.063]
[1738262578265,7.92414405,241.1,241.05,0.063]
[1738262578463,0.77782436,241.09,241.05,0.063]
[1738262579378,0.12549,241.08,241.05,0.063]
[1738262579573,0.77776992,241.12,241.06,7.92414405]
[1738262579884,13.41184853,241.13,241.05,0.57445882]
[1738262579885,0.7777045,241.13,241.08,7.92414405]
[1738262580173,0.25098,241.12,241.08,7.92414405]
[1738262580372,0.12549,241.12,241.1,7.92414405]
[1738262580673,0.77761387,241.17,241.11,0.51114673]
[1738262581080,0.77755779,241.19,241.12,7.92414405]
[1738262581374,0.25098,241.18,241.12,7.92414405]
[1738262581547,0.25098,241.16,241.12,7.92414405]
[1738262582080,0.77754621,241.19,241.13,0.51101141]
[1738262582372,0.25098,241.18,241.14,7.92414405]
[1738262583547,0.12549,241.16,241.1,7.92414405]
[1738262583858,0.77759759,241.15,241.09,0.51090383]
[1738262584164,0.12549,241.16,241.1,7.92414405]
[1738262584363,0.12549,241.16,241.11,0.51105603]
[1738262584761,0.12549,241.16,241.1,7.92414405]
[1738262586186,13.53733853,241.17,241.1,7.92414405]
[1738262586378,8.70179685,241.16,241.08,7.92414405]
[1738262586792,0.12549,241.13,241.07,137.0]
[1738262587098,0.12549,241.13,241.06,7.92414405]
[1738262587371,0.12549,241.13,241.07,0.5112368]
[1738262589781,0.12549,241.13,241.08,7.92414405]
[1738262593074,0.12549,241.13,241.08,7.98714405]
[1738262597200,13.53733853,241.11,241.08,0.063]
[1738262597391,8.70193185,241.1,241.08,0.063]
[1738262598690,13.53733853,241.09,241.08,0.063]
[1738262600298,17.68513853,241.09,241.08,0.063]
[1738262603590,13.53733853,241.09,241.08,0.063]
[1738262604908,17.68513853,241.09,241.08,0.063]
[1738262606981,13.53733853,241.06,241.05,0.063]
[1738262607180,22.23964415,241.06,241.05,0.063]
[1738262608285,26.38794415,241.06,241.05,0.063]
[1738262615610,33.53733853,241.01,240.91,0.063]
[1738262615811,8.04963405,240.92,240.91,0.063]
[1738262616688,21.46148258,240.92,240.91,0.063]
[1738262617003,8.04963405,240.92,240.91,0.063]
[1738262617400,8.82805225,240.92,240.91,0.063]
[1738262618102,12.97875225,240.92,240.91,0.063]
[1738262618311,26.39060078,240.92,240.91,0.063]
[1738262619207,26.51609078,240.92,240.91,0.063]
[1738262623111,22.36539078,240.92,240.91,0.063]
[1738262626292,26.51609078,240.92,240.91,0.063]
[1738262635426,1.0293982,240.92,240.91,0.063]
[1738262635631,0.25098,240.92,240.91,0.063]
[1738262641521,7.92414405,240.98,240.91,7.98714405]
[1738262641728,7.92414405,241.0,240.93,7.92414405]
[1738262642031,0.12549,240.98,240.93,7.92414405]
[1738262642416,0.12549,240.99,240.92,0.51224168]
[1738262642612,0.12549,240.97,240.91,90.28714405]
[1738262645514,0.12549,240.97,240.92,0.51227122]
[1738262645842,7.92414405,241.07,240.95,7.92414405]
[1738262646131,0.90345947,241.06,240.99,7.92414405]
[1738262647249,0.12549,241.04,240.95,227.22414405]
[1738262647423,0.80806874,241.03,240.95,227.22414405]
[1738262647754,8.73221279,241.03,240.95,227.22414405]
[1738262648346,0.80806874,241.03,240.97,7.92414405]
[1738262648557,0.03,241.03,240.98,0.51198102]
[1738262649751,0.03,241.03,240.99,7.92414405]
[1738262650053,0.03,241.03,241.0,0.51176463]
[1738262650252,0.03,241.03,240.99,7.92414405]
[1738262651448,0.03,241.03,240.97,7.92414405]
[1738262651648,0.03,241.03,240.98,0.51182386]
[1738262651837,0.12549,241.02,240.97,7.92414405]
[1738262654733,0.12549,240.98,240.91,137.063]
[1738262655052,0.12549,240.96,240.92,0.51234391]
[1738262655223,0.12549,240.96,240.93,7.92414405]
[1738262655822,0.77813336,241.0,240.94,0.51218571]
[1738262656024,0.90358962,241.0,240.93,8.43626228]
[1738262656454,7.92414405,240.99,240.91,8.49930752]
[1738262656758,0.90368276,240.98,240.91,7.98714405]
[1738262656929,7.92414405,240.97,240.91,0.063]
[1738262657123,0.12549,240.95,240.91,0.063]
[1738262658139,0.12549,240.96,240.91,7.98714405]
[1738262659678,8.73230852,241.03,240.94,7.92414405]
[1738262659973,8.73230852,241.03,240.96,7.92414405]
[1738262660176,13.53733853,241.02,240.96,7.92414405]
[1738262660344,0.77806269,241.01,240.96,7.92414405]
[1738262663064,0.77806269,241.01,240.94,7.92414405]
[1738262664565,0.77806269,241.01,240.95,0.51208597]
[1738262664968,0.77806269,241.01,240.94,7.92414405]
[1738262665355,0.77806269,241.01,240.95,0.5121167]
[1738262665863,0.77806269,241.01,240.95,0.5120652]
[1738262667250,0.77807348,241.02,240.96,7.92414405]
[1738262667469,0.03,241.03,241.0,7.92414405]
[1738262667954,0.03,241.03,240.98,7.92414405]
[1738262668654,0.03,241.03,240.97,82.3]
[1738262668655,0.15549,241.03,240.97,82.3]
[1738262668860,0.12549,241.01,240.97,82.3]
[1738262672294,0.12549,240.98,240.97,82.3]
[1738262672590,0.12549,240.98,240.91,90.28714405]
[1738262672887,0.90366236,240.98,240.92,0.51226371]
[1738262673064,0.12549,240.98,240.92,0.51226371]
[1738262673995,0.12549,240.98,240.91,90.28714405]
[1738262674169,0.12549,240.98,240.92,0.5122718]
[1738262674577,0.12549,240.98,240.93,7.92414405]
[1738262674812,0.12549,240.98,240.94,0.51205588]
[1738262675092,0.12549,240.98,240.95,7.92414405]
[1738262675383,0.77806845,241.01,240.95,7.92414405]
[1738262675588,7.95414405,241.03,240.97,7.92414405]
[1738262675589,0.03,241.03,240.97,7.92414405]
[1738262675969,0.15549,241.03,240.97,7.92414405]
[1738262677276,0.12549,241.01,240.95,7.92414405]
[1738262678683,8.04963405,241.01,240.93,7.92414405]
[1738262678892,0.12549,240.99,240.93,7.92414405]
[1738262679073,0.12549,240.99,240.93,8.43627598]
[1738262686208,8.04963405,240.99,240.92,0.51214547]
[1738262686493,0.12549,240.98,240.92,0.51214547]
[1738262693789,0.12549,241.0,240.93,7.92414405]
[1738262693979,0.90361907,241.0,240.93,7.92414405]
[1738262695511,8.82776312,241.0,240.93,7.92414405]
[1738262697216,0.12549,240.98,240.92,8.43628952]
[1738262699331,0.12549,240.98,240.92,0.51214547]
[1738262699619,0.12549,240.98,240.91,0.063]
[1738262699620,0.12549,240.92,240.91,0.063]
[1738262699926,0.90385553,240.92,240.91,0.063]
[1738262700108,14.31570406,240.92,240.91,0.063]
[1738262700424,23.85074811,240.92,240.91,0.063]
[1738262701691,28.00144811,240.92,240.91,0.063]
[1738262702129,23.85074811,240.92,240.91,0.063]
[1738262702313,28.00144811,240.92,240.91,0.063]
[1738262705151,20.12549,240.89,240.88,0.063]
[1738262705339,42.24017485,240.89,240.88,0.063]
[1738262705717,0.12549,240.84,240.83,0.063]
[1738262705933,58.08891779,240.84,240.83,0.063]
[1738262706145,26.39234159,240.84,240.83,0.063]
[1738262707121,26.51783159,240.84,240.83,0.063]
[1738262707512,22.36573159,240.84,240.83,0.063]
[1738262707723,14.44158754,240.84,240.83,0.063]
[1738262709451,22.36573159,240.84,240.83,0.063]
[1738262710350,8.95388306,240.84,240.83,0.063]
[1738262710850,1.02973901,240.84,240.83,0.063]
[1738262712545,8.95388306,240.84,240.83,0.063]
[1738262714449,8.17512405,240.84,240.83,0.063]
[1738262715663,12.32722405,240.84,240.83,0.063]
[1738262715958,8.17512405,240.84,240.83,0.063]
[1738262716154,0.12549,240.84,240.83,0.063]
[1738262716361,1.5121,240.88,240.83,0.063]
[1738262716526,7.92414405,240.92,240.84,7.92414405]
[1738262716952,14.31581525,240.91,240.84,7.92414405]
[1738262719760,0.12549,240.91,240.86,7.92414405]
[1738262719975,0.77836367,240.97,240.9,7.92414405]
[1738262720643,13.53733853,240.96,240.9,7.92414405]
[1738262720844,0.7782501,241.01,240.95,7.92414405]
[1738262721159,0.03,241.03,240.97,7.92414405]
[1738262721544,0.12549,241.02,240.95,82.3]
[1738262721875,0.12549,241.02,240.9,137.0]
[1738262721876,13.53733853,240.96,240.9,82.3]
[1738262722079,0.12549,240.91,240.83,227.28714405]
[1738262722372,0.12549,240.91,240.84,0.51271693]
[1738262722578,0.12549,240.91,240.85,7.92414405]
[1738262722749,0.12549,240.91,240.84,0.51271693]
[1738262723079,13.53733853,240.91,240.84,0.51271693]
[1738262723250,13.53733853,240.91,240.83,90.28714405]
[1738262723251,0.12549,240.89,240.83,90.28714405]
[1738262724282,7.92414405,240.88,240.83,0.063]
[1738262724444,1.02956303,240.87,240.83,0.063]
[1738262724779,13.45168479,240.87,240.84,0.063]
[1738262726676,12.42212176,240.94,240.86,12.42212176]
[1738262726900,0.7784113,240.93,240.86,12.42212176]
[1738262727087,13.66282853,240.89,240.84,0.063]
[1738262727271,0.12549,240.87,240.84,0.063]
[1738262727779,0.25098,240.85,240.84,0.063]
[1738262728861,0.90409673,240.85,240.84,0.063]
[1738262729971,0.12549,240.85,240.84,0.063]
[1738262730298,0.90410557,240.85,240.84,0.063]
[1738262730793,14.3159541,240.85,240.84,0.063]
[1738262733803,18.4678541,240.85,240.84,0.063]
[1738262742084,30.88997586,240.85,240.84,0.063]
[1738262742281,33.53733853,240.81,240.8,0.063]
[1738262742510,46.73847,240.81,240.8,0.063]
[1738262743185,50.89107,240.81,240.8,0.063]
[1738262744709,33.53733853,240.77,240.76,0.063]
[1738262745014,46.73858057,240.77,240.76,0.063]
[1738262745626,50.89188057,240.77,240.76,0.063]
[1738262749818,51.01737057,240.77,240.76,0.063]
[1738262751022,26.86407057,240.77,240.76,0.063]
[1738262751337,0.25098,240.77,240.76,0.063]
[1738262752127,30.23825029,240.77,240.76,0.063]
[1738262752997,28.77565274,240.77,240.76,0.063]
[1738262753816,24.62235274,240.77,240.76,0.063]
[1738262754025,12.42212176,240.79,240.76,0.063]
[1738262754322,0.77884303,240.78,240.76,0.063]
[1738262754508,0.03,240.8,240.76,0.063]
[1738262756123,0.12549,240.79,240.76,0.063]
[1738262758233,0.12549,240.77,240.76,0.063]
[1738262759130,0.12549,240.79,240.76,0.063]
[1738262760239,0.03,240.8,240.76,0.063]
[1738262760401,0.03,240.8,240.76,12.99844349]
[1738262760827,0.03,240.8,240.76,12.48512176]
[1738262761024,0.15549,240.8,240.76,12.48512176]
[1738262762335,0.03,240.8,240.77,0.51330174]
[1738262762520,0.03,240.8,240.76,12.48512176]
[1738262763418,0.03,240.8,240.76,0.063]
[1738262763847,0.77873503,240.79,240.76,0.063]
[1738262764327,0.12549,240.79,240.76,0.063]
[1738262764516,0.12549,240.79,240.76,12.48512176]
[1738262764713,0.03,240.8,240.76,12.48512176]
[1738262764714,0.03,240.8,240.78,12.42212176]
[1738262767835,0.03,240.8,240.76,12.99834129]
[1738262768244,0.03,240.8,240.76,95.29834129]
[1738262768447,0.03,240.8,240.76,94.78512176]
[1738262769736,0.03,240.8,240.77,0.5132095]
[1738262769918,0.03,240.8,240.76,94.78512176]
[1738262770763,0.03,240.8,240.77,0.51326217]
[1738262771841,0.03,240.8,240.76,94.78512176]
[1738262772735,0.03,240.8,240.76,82.363]
[1738262772936,0.03,240.8,240.76,82.87625465]
[1738262773570,0.03,240.8,240.77,7.95305778]
[1738262774063,0.03,240.8,240.76,82.363]
[1738262774266,0.03,240.8,240.76,82.87624732]
[1738262775971,0.03,240.8,240.77,7.95305778]
[1738262776141,0.03,240.8,240.79,7.95305778]
[1738262776344,0.03,240.8,240.79,227.25305778]
[1738262776653,0.03,240.8,240.79,228.25305778]
[1738262777053,0.03,240.8,240.79,229.86805778]
[1738262777854,0.77838222,240.96,240.82,21.0]
[1738262778056,7.95305778,240.97,240.87,7.95305778]
[1738262778260,7.95305778,240.97,240.87,227.25305778]
[1738262778456,0.12549,240.96,240.87,227.25305778]
[1738262778774,0.12549,240.97,240.87,231.71091392]
[1738262780539,0.12549,240.95,240.87,231.71091392]
[1738262780738,0.12549,240.89,240.87,219.3]
[1738262781252,12.56640392,240.88,240.87,219.3]
[1738262782051,12.56640392,240.88,240.81,94.71091392]
[1738262782052,0.12549,240.87,240.81,94.71091392]
[1738262782250,0.90400304,240.87,240.81,94.71091392]
[1738262782448,0.12549,240.85,240.79,149.41091392]
[1738262782662,0.12549,240.85,240.8,0.51301381]
[1738262784045,0.12549,240.85,240.79,149.41091392]
[1738262784242,0.77859572,240.84,240.79,137.0]
[1738262784476,0.12549,240.81,240.76,82.363]
[1738262784641,0.12549,240.79,240.76,0.063]
[1738262784847,0.9042287,240.79,240.76,0.063]
[1738262785364,0.12549,240.79,240.76,0.063]